fUSD/lending_fUSD_20240804
["ID","MTS","AMOUNT","RATE_DAILY","PERIOD"]
[334168271,1722805918995,-791.87,0.00023424,9]
[334168272,1722805919005,-1134.62,0.00023424,9]
[334168273,1722805919015,-500.0,0.00023424,9]
[334168274,1722805919023,-500.0,0.00023424,9]
[334168275,1722805919033,-440.26154019,0.00023424,9]
[334168276,1722805919042,-500.0,0.00023424,9]
[334168277,1722805919052,-500.0,0.00023424,9]
[334168278,1722805919062,-684.59,0.00023424,9]
[334168279,1722805919072,-500.0,0.00023424,9]
[334168280,1722805919084,-500.0,0.00023424,9]
[334168281,1722805919094,-500.0,0.00023424,9]
[334168282,1722805919103,-807.51,0.00023424,9]
[334168283,1722805919113,-1911.59,0.00023424,9]
[334168284,1722805919123,-500.0,0.00023424,9]
[334168285,1722805919133,-500.0,0.00023424,9]
[334168286,1722805919142,-500.0,0.00023424,9]
[334168287,1722805919151,-500.0,0.00023424,9]
[334168288,1722805919161,-500.0,0.00023424,9]
[334168289,1722805919170,-500.0,0.00023424,9]
[334168290,1722805919179,-767.21,0.00023424,9]
[334168291,1722805919188,-3835.47,0.00023424,9]
[334168292,1722805919199,-696.93,0.00023424,9]
[334168293,1722805919208,-500.0,0.00023424,9]
[334168294,1722805919218,-1057.28,0.00023424,9]
[334168295,1722805919228,-948.14,0.00023424,9]
[334168296,1722805919237,-970.01,0.00023424,9]
[334168297,1722805919246,-500.0,0.00023424,9]
[334168298,1722805919255,-1408.64,0.00023424,9]
[334168299,1722805919265,-901.07,0.00023424,9]
[334168300,1722805919274,-1514.72,0.00023424,9]
[334168301,1722805919283,-500.0,0.00023424,9]
[334168302,1722805919292,-500.0,0.00023424,9]
[334168303,1722805919302,-500.0,0.00023424,9]
[334168304,1722805919312,-500.0,0.00023424,9]
[334168305,1722805919322,-1322.2,0.00023424,9]
[334168306,1722805919331,-523.43,0.00023424,9]
[334168307,1722805919341,-792.65,0.00023424,9]
[334168308,1722805919350,-1221.82,0.00023424,9]
[334168309,1722805919360,-1697.88,0.00023424,9]
[334168310,1722805919370,-500.0,0.00023424,9]
[334168311,1722805919379,-262.87615572,0.00023424,9]
[334168312,1722805919389,-728.07,0.00023424,9]
[334168313,1722805919398,-500.0,0.00023424,9]
[334168314,1722805919409,-1039.84,0.00023424,9]
[334168315,1722805919419,-500.0,0.00023424,9]
[334168316,1722805919429,-1478.14,0.00023424,9]
[334168317,1722805919438,-1348.33,0.00023424,9]
[334168318,1722805919447,-839.23,0.00023424,9]
[334168319,1722805919456,-500.0,0.00023424,9]
[334168320,1722805919465,-500.0,0.00023424,9]
[334168321,1722805919476,-991.75,0.00023424,9]
[334168322,1722805919486,-236.02787624,0.00023424,9]
[334168323,1722805919496,-1264.59,0.00023424,9]
[334168324,1722805919506,-500.0,0.00023424,9]
[334168325,1722805919518,-1705.54,0.00023424,9]
[334168326,1722805919528,-2848.3,0.00023424,9]
[334168327,1722805919540,-500.0,0.00023424,9]
[334168328,1722805919549,-500.0,0.00023424,9]
[334168329,1722805919559,-2193.06,0.00023424,9]
[334168330,1722805919568,-2998.86,0.00023424,9]
[334168331,1722805919579,-10229.78,0.00023424,9]
[334168332,1722805919591,-666.35,0.00023424,9]
[334168333,1722805919601,-2996.4,0.00023424,9]
[334168334,1722805919611,-500.0,0.00023424,9]
[334168335,1722805919622,-500.0,0.00023424,9]
[334168336,1722805919631,-963.29,0.00023424,9]
[334168337,1722805919642,-1351.1,0.00023424,9]
[334168338,1722805919653,-500.0,0.00023424,9]
[334168339,1722805919665,-1069.8,0.00023424,9]
[334168340,1722805919675,-4507.33,0.00023424,9]
[334168341,1722805919685,-500.0,0.00023424,9]
[334168342,1722805919696,-844.23,0.00023424,9]
[334168343,1722805919706,-1472.08,0.00023424,9]
[334168344,1722805919717,-2076.15,0.00023424,9]
[334168345,1722805919727,-2525.21,0.00023424,9]
[334168346,1722805919736,-1167.47,0.00023424,9]
[334168347,1722805919835,-1412.6,0.00023424,9]
[334168348,1722805919847,-500.0,0.00023424,9]
[334168349,1722805919858,-500.0,0.00023424,9]
[334168350,1722805919868,-500.0,0.00023424,9]
[334168351,1722805919878,-1229.02,0.00023424,9]
[334168352,1722805919887,-531.61,0.00023424,9]
[334168353,1722805919897,-500.0,0.00023424,9]
[334168354,1722805919907,-6553.66,0.00023424,9]
[334168355,1722805919917,-500.0,0.00023424,9]
[334168356,1722805919927,-500.0,0.00023424,9]
[334168357,1722805919938,-500.0,0.00023424,9]
[334168358,1722805919948,-500.0,0.00023424,9]
[334168359,1722805919958,-691.94,0.00023424,9]
[334168360,1722805919967,-520.49,0.00023424,9]
[334168361,1722805919978,-2309.07,0.00023424,9]
[334168362,1722805919987,-500.0,0.00023424,9]
[334168363,1722805919998,-500.0,0.00023424,9]
[334168364,1722805920007,-500.0,0.00023424,9]
[334168365,1722805920017,-500.0,0.00023424,9]
[334168366,1722805920026,-500.0,0.00023424,9]
[334168367,1722805920035,-500.0,0.00023424,9]
[334168368,1722805920045,-7369.62,0.00023424,9]
[334168369,1722805920054,-1541.38,0.00023424,9]
[334168370,1722805920064,-1634.36,0.00023424,9]
[334168371,1722805920074,-500.0,0.00023424,9]
[334168372,1722805920083,-1725.22,0.00023424,9]
[334168373,1722805920093,-4003.4,0.00023424,9]
[334168374,1722805920102,-500.0,0.00023424,9]
[334168375,1722805920111,-29096.91,0.00023424,9]
[334168376,1722805920122,-1389.65,0.00023424,9]
[334168377,1722805920131,-500.0,0.00023424,9]
[334168378,1722805920141,-500.0,0.00023424,9]
[334168379,1722805920151,-500.0,0.00023424,9]
[334168380,1722805920161,-500.0,0.00023424,9]
[334168381,1722805920171,-1445.15,0.00023424,9]
[334168382,1722805920180,-2166.73,0.00023424,9]
[334168383,1722805920190,-1008.24,0.00023424,9]
[334168384,1722805920199,-875.6,0.00023424,9]
[334168385,1722805920210,-500.0,0.00023424,9]
[334168386,1722805920220,-2110.33,0.00023424,9]
[334168387,1722805920230,-441.33491781,0.00023424,9]
[334168388,1722805920240,-1837.17,0.00023424,9]
[334168389,1722805920250,-500.0,0.00023424,9]
[334168390,1722805920259,-500.0,0.00023424,9]
[334168391,1722805920268,-500.0,0.00023424,9]
[334168392,1722805920278,-500.0,0.00023424,9]
[334168393,1722805920288,-869.18,0.00023424,9]
[334168394,1722805920298,-3297.96,0.00023424,9]
[334168395,1722805920307,-500.0,0.00023424,9]
[334168396,1722805920318,-500.0,0.00023424,9]
[334168397,1722805920327,-500.0,0.00023424,9]
[334168398,1722805920336,-500.0,0.00023424,9]
[334168399,1722805920346,-500.0,0.00023424,9]
[334168400,1722805920356,-500.0,0.00023424,9]
[334168401,1722805920366,-500.0,0.00023424,9]
[334168402,1722805920376,-1974.83,0.00023424,9]
[334168403,1722805920386,-1490.37,0.00023424,9]
[334168404,1722805920395,-500.0,0.00023424,9]
[334168405,1722805920406,-500.0,0.00023424,9]
[334168406,1722805920415,-500.0,0.00023424,9]
[334168407,1722805920425,-1163.87,0.00023424,9]
[334168408,1722805920435,-838.33,0.00023424,9]
[334168409,1722805920445,-529.16,0.00023424,9]
[334168410,1722805920455,-974.84,0.00023424,9]
[334168411,1722805920464,-15920.46,0.00023424,9]
[334168412,1722805920473,-4240.5,0.00023424,9]
[334168413,1722805920483,-5400.18,0.00023424,9]
[334168414,1722805920492,-500.0,0.00023424,9]
[334168415,1722805920501,-590.46,0.00023424,9]
[334168416,1722805920512,-507.56,0.00023424,9]
[334168417,1722805920521,-500.0,0.00023424,9]
[334168418,1722805920531,-3908.25,0.00023424,9]
[334168419,1722805920540,-500.0,0.00023424,9]
[334168420,1722805920550,-500.0,0.00023424,9]
[334168421,1722805920559,-500.0,0.00023424,2]
[334168422,1722805920569,-500.0,0.00023424,9]
[334168423,1722805920582,-500.0,0.00023424,9]
[334168424,1722805920592,-529.53,0.00023424,9]
[334168425,1722805920602,-500.0,0.00023424,9]
[334168426,1722805920611,-500.0,0.00023424,9]
[334168427,1722805920622,-500.0,0.00023424,9]
[334168428,1722805920632,-500.0,0.00023424,9]
[334168429,1722805920641,-813.32,0.00023424,9]
[334168430,1722805920650,-4692.4,0.00023424,9]
[334168431,1722805920665,-585.12,0.00023424,9]
[334168432,1722805920677,-500.0,0.00023424,9]
[334168433,1722805920687,-500.0,0.00023424,9]
[334168434,1722805920697,-500.0,0.00023424,9]
[334168435,1722805920706,-2368.57,0.00023424,9]
[334168436,1722805920715,-1822.82,0.00023424,9]
[334168437,1722805920725,-500.0,0.00023424,9]
[334168438,1722805920734,-1306.56,0.00023424,9]
[334168439,1722805920743,-1782.24,0.00023424,9]
[334168440,1722805920753,-500.0,0.00023424,9]
[334168441,1722805920763,-532.36,0.00023424,9]
[334168442,1722805920772,-584.45,0.00023424,9]
[334168443,1722805920781,-3279.94,0.00023424,9]
[334168444,1722805920791,-1802.61,0.00023424,9]
[334168445,1722805920800,-1732.98,0.00023424,9]
[334168446,1722805920811,-570.5,0.00023424,9]
[334168447,1722805920820,-1593.38,0.00023424,9]
[334168448,1722805920830,-500.0,0.00023424,9]
[334168449,1722805920840,-500.0,0.00023424,9]
[334168450,1722805920850,-500.0,0.00023424,9]
[334168451,1722805920860,-1389.19,0.00023424,9]
[334168452,1722805920869,-704.27,0.00023424,9]
[334168453,1722805920878,-500.0,0.00023424,9]
[334168454,1722805920887,-1292.52,0.00023424,9]
[334168455,1722805920897,-749.6,0.00023424,9]
[334168456,1722805920910,-500.0,0.00023424,9]
[334168457,1722805920923,-795.55,0.00023424,9]
[334168458,1722805920933,-500.0,0.00023424,9]
[334168459,1722805920943,-2234.5,0.00023424,9]
[334168460,1722805920953,-500.0,0.00023424,9]
[334168461,1722805920962,-1619.53,0.00023424,9]
[334168462,1722805920972,-500.0,0.00023424,9]
[334168463,1722805920982,-1978.79,0.00023424,9]
[334168464,1722805920992,-500.0,0.00023424,9]
[334168465,1722805921002,-500.0,0.00023424,9]
[334168466,1722805921012,-1324.25,0.00023424,9]
[334168467,1722805921022,-500.0,0.00023424,9]
[334168468,1722805921032,-4642.9,0.00023424,9]
[334168469,1722805921042,-500.0,0.00023424,9]
[334168470,1722805921051,-1486.81,0.00023424,9]
[334168471,1722805921061,-1192.94,0.00023424,9]
[334168472,1722805921071,-905.71,0.00023424,9]
[334168473,1722805921081,-748.9,0.00023424,9]
[334168474,1722805921091,-1702.1,0.00023424,9]
[334168475,1722805921102,-551.73,0.00023424,9]
[334168476,1722805921111,-500.0,0.00023424,9]
[334168477,1722805921122,-1520.77,0.00023424,9]
[334168478,1722805921132,-500.0,0.00023424,9]
[334168479,1722805921142,-500.0,0.00023424,9]
[334168480,1722805921151,-500.0,0.00023424,9]
[334168481,1722805921164,-638.91,0.00023424,9]
[334168482,1722805921174,-784.78,0.00023424,9]
[334168483,1722805921184,-500.0,0.00023424,9]
[334168484,1722805921194,-500.0,0.00023424,9]
[334168485,1722805921204,-1738.84,0.00023424,9]
[334168486,1722805921213,-500.0,0.00023424,9]
[334168487,1722805921224,-1249.0,0.00023424,9]
[334168488,1722805921233,-500.0,0.00023424,9]
[334168489,1722805921243,-648.05,0.00023424,9]
[334168490,1722805921252,-1912.77,0.00023424,9]
[334168491,1722805921262,-500.0,0.00023424,9]
[334168492,1722805921273,-512.44,0.00023424,9]
[334168493,1722805921282,-2333.13,0.00023424,9]
[334168494,1722805921293,-700.51,0.00023424,9]
[334168495,1722805921302,-500.0,0.00023424,9]
[334168496,1722805921312,-2730.38,0.00023424,9]
[334168497,1722805921321,-1336.78,0.00023424,9]
[334168498,1722805921331,-500.0,0.00023424,9]
[334168499,1722805921340,-914.73,0.00023424,9]
[334168500,1722805921350,-500.0,0.00023424,9]
[334168501,1722805921359,-500.0,0.00023424,9]
[334168502,1722805921369,-500.0,0.00023424,9]
[334168503,1722805921379,-500.0,0.00023424,9]
[334168504,1722805921389,-581.05,0.00023424,9]
[334168505,1722805921398,-2039.74,0.00023424,9]
[334168506,1722805921409,-671.9,0.00023424,9]
[334168507,1722805921419,-1746.98,0.00023424,9]
[334168508,1722805921428,-1826.84,0.00023424,9]
[334168509,1722805921438,-500.0,0.00023424,9]
[334168510,1722805921448,-617.4,0.00023424,9]
[334168511,1722805921458,-1409.8,0.00023424,9]
[334168512,1722805921468,-500.0,0.00023424,9]
[334168513,1722805921477,-6817.41,0.00023424,9]
[334168514,1722805921487,-513.75,0.00023424,9]
[334168515,1722805921496,-1484.97,0.00023424,9]
[334168516,1722805921506,-500.0,0.00023424,9]
[334168517,1722805921516,-2027.34,0.00023424,9]
[334168518,1722805921527,-500.0,0.00023424,9]
[334168519,1722805921537,-500.0,0.00023424,9]
[334168520,1722805921547,-1047.24,0.00023424,9]
[334168521,1722805921557,-500.0,0.00023424,9]
[334168522,1722805921567,-1539.01,0.00023424,9]
[334168523,1722805921576,-500.0,0.00023424,9]
[334168524,1722805921591,-500.0,0.00023424,9]
[334168525,1722805921600,-500.0,0.00023424,9]
[334168526,1722805921610,-538.57,0.00023424,9]
[334168527,1722805921619,-1410.21,0.00023424,9]
[334168528,1722805921629,-2974.83,0.00023424,9]
[334168529,1722805921639,-2337.3,0.00023424,9]
[334168530,1722805921648,-981.74,0.00023424,9]
[334168531,1722805921662,-1835.59,0.00023424,9]
[334168532,1722805921672,-500.0,0.00023424,9]
[334168533,1722805921681,-1335.18,0.00023424,9]
[334168534,1722805921691,-500.0,0.00023424,9]
[334168535,1722805921701,-500.0,0.00023424,9]
[334168536,1722805921710,-1361.87,0.00023424,9]
[334168537,1722805921719,-642.87,0.00023424,9]
[334168538,1722805921729,-500.0,0.00023424,9]
[334168539,1722805921740,-500.0,0.00023424,9]
[334168540,1722805921750,-421.76,0.00023424,9]
[334168541,1722805921759,-500.0,0.00023424,9]
[334168542,1722805921769,-1731.8,0.00023424,9]
[334168543,1722805921778,-6629.34,0.00023424,9]
[334168544,1722805921788,-500.0,0.00023424,9]
[334168545,1722805921797,-1551.76,0.00023424,9]
[334168546,1722805921806,-589.81,0.00023424,9]
[334168547,1722805921816,-1218.11,0.00023424,9]
[334168548,1722805921825,-500.0,0.00023424,9]
[334168549,1722805921835,-500.0,0.00023424,9]
[334168550,1722805921843,-1011.86,0.00023424,9]
[334168551,1722805921853,-500.0,0.00023424,9]
[334168552,1722805921864,-1603.94,0.00023424,9]
[334168553,1722805921873,-2430.72,0.00023424,9]
[334168554,1722805921883,-780.91,0.00023424,9]
[334168555,1722805921893,-546.2,0.00023424,9]
[334168556,1722805921906,-1366.44,0.00023424,9]
[334168557,1722805921915,-2362.81,0.00023424,9]
[334168558,1722805921925,-500.0,0.00023424,9]
[334168559,1722805921935,-169.51574991,0.00023424,9]
[334168560,1722805921944,-2577.06,0.00023424,9]
[334168561,1722805921954,-840.74,0.00023424,9]
[334168562,1722805921964,-1386.14,0.00023424,9]
[334168563,1722805921974,-1616.46,0.00023424,9]
[334168564,1722805921983,-500.0,0.00023424,9]
[334168565,1722805921993,-500.0,0.00023424,9]
[334168566,1722805922003,-3538.17,0.00023424,9]
[334168567,1722805922013,-291.95852709,0.00023424,9]
[334168568,1722805922022,-1548.4,0.00023424,9]
[334168569,1722805922032,-1033.75,0.00023424,9]
[334168570,1722805922042,-500.0,0.00023424,9]
[334168571,1722805922051,-500.0,0.00023424,9]
[334168572,1722805922061,-1092.49,0.00023424,9]
[334168573,1722805922070,-9086.99,0.00023424,9]
[334168574,1722805922080,-1168.4,0.00023424,9]
[334168575,1722805922090,-1765.93,0.00023424,9]
[334168576,1722805922100,-1340.4,0.00023424,9]
[334168577,1722805922110,-1384.98,0.00023424,9]
[334168578,1722805922119,-1030.71,0.00023424,9]
[334168579,1722805922129,-500.0,0.00023424,9]
[334168580,1722805922139,-500.0,0.00023424,9]
[334168581,1722805922148,-514.08271887,0.00023424,9]
[334168582,1722805922159,-1452.74,0.00023424,9]
[334168583,1722805922167,-500.0,0.00023424,9]
[334168584,1722805922177,-1306.99,0.00023424,9]
[334168585,1722805922187,-500.0,0.00023424,9]
[334168586,1722805922198,-500.0,0.00023424,9]
[334168587,1722805922208,-937.33,0.00023424,9]
[334168588,1722805922217,-1739.37,0.00023424,9]
[334168589,1722805922227,-1656.69,0.00023424,9]
[334168590,1722805922235,-2376.7,0.00023424,9]
[334168591,1722805922245,-2369.95,0.00023424,9]
[334168592,1722805922255,-500.0,0.00023424,9]
[334168593,1722805922264,-2350.99,0.00023424,9]
[334168594,1722805922274,-500.0,0.00023424,9]
[334168595,1722805922285,-500.0,0.00023424,9]
[334168596,1722805922295,-1993.53,0.00023424,9]
[334168597,1722805922306,-500.0,0.00023424,9]
[334168598,1722805922315,-758.04,0.00023424,9]
[334168599,1722805922325,-500.0,0.00023424,9]
[334168600,1722805922334,-500.0,0.00023424,9]
[334168601,1722805922343,-500.0,0.00023424,9]
[334168602,1722805922353,-1187.35,0.00023424,9]
[334168603,1722805922363,-500.0,0.00023424,9]
[334168604,1722805922373,-500.0,0.00023424,9]
[334168605,1722805922383,-1636.69,0.00023424,9]
[334168606,1722805922392,-1551.59,0.00023424,9]
[334168607,1722805922402,-500.0,0.00023424,9]
[334168608,1722805922415,-777.93,0.00023424,9]
[334168609,1722805922425,-1247.64,0.00023424,9]
[334168610,1722805922435,-857.36,0.00023424,9]
[334168611,1722805922445,-531.47,0.00023424,9]
[334168612,1722805922455,-500.0,0.00023424,9]
[334168613,1722805922464,-500.0,0.00023424,9]
[334168614,1722805922473,-1062.23,0.00023424,9]
[334168615,1722805922482,-500.0,0.00023424,9]
[334168616,1722805922492,-500.0,0.00023424,9]
[334168617,1722805922502,-1536.84,0.00023424,9]
[334168618,1722805922511,-5130.9,0.00023424,9]
[334168619,1722805922523,-500.0,0.00023424,9]
[334168620,1722805922533,-3352.44,0.00023424,9]
[334168621,1722805922543,-500.0,0.00023424,9]
[334168622,1722805922553,-1619.45,0.00023424,9]
[334168623,1722805922563,-500.0,0.00023424,9]
[334168624,1722805922573,-500.0,0.00023424,9]
[334168625,1722805922589,-500.0,0.00023424,9]
[334168626,1722805922599,-500.0,0.00023424,9]
[334168627,1722805922609,-8524.14,0.00023424,9]
[334168628,1722805922619,-500.0,0.00023424,9]
[334168629,1722805922630,-500.0,0.00023424,9]
[334168630,1722805922640,-1025.18,0.00023424,9]
[334168631,1722805922651,-2009.05,0.00023424,9]
[334168632,1722805922663,-590.4,0.00023424,9]
[334168633,1722805922673,-7112.16,0.00023424,9]
[334168634,1722805922683,-500.0,0.00023424,9]
[334168635,1722805922692,-1553.57,0.00023424,9]
[334168636,1722805922701,-500.0,0.00023424,9]
[334168637,1722805922710,-500.0,0.00023424,9]
[334168638,1722805922720,-1056.97,0.00023424,9]
[334168639,1722805922730,-3317.33,0.00023424,9]
[334168640,1722805922741,-500.0,0.00023424,9]
[334168641,1722805922751,-1901.52,0.00023424,9]
[334168642,1722805922761,-500.0,0.00023424,9]
[334168643,1722805922771,-500.0,0.00023424,9]
[334168644,1722805922780,-2352.85,0.00023424,9]
[334168645,1722805922790,-1722.79,0.00023424,9]
[334168646,1722805922800,-9656.6,0.00023424,9]
[334168647,1722805922811,-849.98,0.00023424,9]
[334168648,1722805922821,-1993.32,0.00023424,9]
[334168649,1722805922830,-800.16,0.00023424,9]
[334168650,1722805922840,-500.0,0.00023424,9]
[334168651,1722805922850,-1408.64,0.00023424,9]
[334168652,1722805922860,-1339.66,0.00023424,9]
[334168653,1722805922870,-500.0,0.00023424,9]
[334168654,1722805922880,-865.36,0.00023424,9]
[334168655,1722805922889,-1318.81,0.00023424,9]
[334168656,1722805922899,-500.0,0.00023424,9]
[334168657,1722805922910,-2831.73,0.00023424,9]
[334168658,1722805922919,-500.0,0.00023424,9]
[334168659,1722805922930,-695.79,0.00023424,9]
[334168660,1722805922940,-1471.03,0.00023424,9]
[334168661,1722805922951,-2363.17,0.00023424,9]
[334168662,1722805922961,-779.57,0.00023424,9]
[334168663,1722805922971,-500.0,0.00023424,9]
[334168664,1722805922981,-500.0,0.00023424,9]
[334168665,1722805922991,-500.0,0.00023424,9]
[334168666,1722805923001,-500.0,0.00023424,9]
[334168667,1722805923011,-500.0,0.00023424,9]
[334168668,1722805923020,-500.0,0.00023424,9]
[334168669,1722805923030,-515.07,0.00023424,9]
[334168670,1722805923041,-500.0,0.00023424,9]
[334168671,1722805923051,-211.54413421,0.00023451,2]
[334168672,1722805923062,-163.06583263,0.00023489,2]
[334168673,1722805923072,-508.79891608,0.00023503,2]
[334168674,1722805923083,-500.0,0.00023506,9]
[334168675,1722805923092,-300.0,0.00023506,9]
[334168676,1722805923102,-717.19,0.00023506,9]
[334168677,1722805923112,-500.0,0.00023506,9]
[334168678,1722805923123,-500.0,0.00023506,9]
[334168679,1722805923132,-653.16,0.00023506,9]
[334168680,1722805923142,-188.52,0.00023506,9]
[334168681,1722805923154,-500.0,0.00023506,9]
[334168682,1722805923163,-500.0,0.00023506,9]
[334168683,1722805923173,-197.45352783,0.00023506,9]
[334168684,1722805923183,-527.8613019,0.00023506,9]
[334168685,1722805923194,-1121.27,0.00023506,9]
[334168686,1722805923204,-500.0,0.00023506,9]
[334168687,1722805923213,-500.0,0.00023506,9]
[334168688,1722805923223,-425.4,0.00023506,9]
[334168689,1722805923233,-500.0,0.00023506,9]
[334168690,1722805923243,-500.0,0.00023506,9]
[334168691,1722805923252,-800.19,0.00023506,9]
[334168692,1722805923261,-500.0,0.00023506,9]
[334168693,1722805923271,-593.38,0.00023506,9]
[334168694,1722805923281,-500.0,0.00023506,9]
[334168695,1722805923292,-500.0,0.00023506,9]
[334168696,1722805923302,-500.0,0.00023506,9]
[334168697,1722805923312,-548.24,0.00023506,9]
[334168698,1722805923321,-500.0,0.00023506,9]
[334168699,1722805923331,-850.63,0.00023506,9]
[334168700,1722805923340,-588.3,0.00023506,9]
[334168701,1722805923350,-500.0,0.00023506,9]
[334168702,1722805923359,-479.26842572,0.00023506,9]
[334168703,1722805923368,-571.35,0.00023506,9]
[334168704,1722805923378,-487.66,0.00023506,9]
[334168705,1722805923387,-701.06,0.00023506,9]
[334168706,1722805923397,-500.0,0.00023506,9]
[334168707,1722805923408,-500.0,0.00023506,9]
[334168708,1722805923417,-500.0,0.00023506,9]
[334168709,1722805923427,-234.03,0.00023506,9]
[334168710,1722805923438,-500.0,0.00023506,9]
[334168711,1722805923447,-689.16,0.00023506,9]
[334168712,1722805923457,-500.0,0.00023506,9]
[334168713,1722805923467,-500.0,0.00023506,9]
[334168714,1722805923477,-500.0,0.00023506,9]
[334168715,1722805923487,-754.72,0.00023506,9]
[334168716,1722805923496,-500.0,0.00023506,9]
[334168717,1722805923507,-500.0,0.00023506,9]
[334168718,1722805923517,-434.77397838,0.00023506,9]
[334168719,1722805923526,-181.45,0.00023506,9]
[334168720,1722805923536,-500.0,0.00023506,9]
[334168721,1722805923545,-500.0,0.00023506,9]
[334168722,1722805923554,-500.0,0.00023506,9]
[334168723,1722805923564,-500.0,0.00023506,9]
[334168724,1722805923574,-730.4,0.00023506,9]
[334168725,1722805923587,-1009.26,0.00023506,9]
[334168726,1722805923596,-539.24,0.00023506,9]
[334168727,1722805923606,-500.0,0.00023506,9]
[334168728,1722805923617,-501.80203623,0.00023506,9]
[334168729,1722805923627,-500.0,0.00023506,9]
[334168730,1722805923639,-615.35,0.00023506,9]
[334168731,1722805923650,-500.0,0.00023506,9]
[334168732,1722805923661,-726.79,0.00023506,9]
[334168733,1722805923673,-500.0,0.00023506,9]
[334168734,1722805923683,-500.0,0.00023506,9]
[334168735,1722805923692,-421.52209106,0.00023506,9]
[334168736,1722805923702,-500.0,0.00023506,9]
[334168737,1722805923711,-500.0,0.00023506,9]
[334168738,1722805923721,-500.0,0.00023506,9]
[334168739,1722805923731,-500.0,0.00023506,9]
[334168740,1722805923740,-463.87,0.00023506,9]
[334168741,1722805923750,-961.79,0.00023506,9]
[334168742,1722805923760,-500.0,0.00023506,9]
[334168743,1722805923769,-303.3,0.00023506,9]
[334168744,1722805923779,-500.0,0.00023506,9]
[334168745,1722805923788,-500.0,0.00023506,9]
[334168746,1722805923798,-500.0,0.00023506,9]
[334168747,1722805923808,-500.0,0.00023506,9]
[334168748,1722805923817,-500.0,0.00023506,9]
[334168749,1722805923827,-500.0,0.00023506,9]
[334168750,1722805923837,-553.34871154,0.00023506,9]
[334168751,1722805923846,-500.0,0.00023506,9]
[334168752,1722805923855,-500.0,0.00023506,9]
[334168753,1722805923865,-500.0,0.00023506,9]
[334168754,1722805923874,-500.0,0.00023506,9]
[334168755,1722805923884,-768.89,0.00023506,9]
[334168756,1722805923893,-500.0,0.00023506,9]
[334168757,1722805923902,-538.21,0.00023506,9]
[334168758,1722805923916,-500.0,0.00023506,9]
[334168759,1722805923926,-500.0,0.00023506,9]
[334168760,1722805923935,-743.11,0.00023506,9]
[334168761,1722805923944,-500.0,0.00023506,9]
[334168762,1722805923953,-863.38,0.00023506,9]
[334168763,1722805923963,-273.1,0.00023506,9]
[334168764,1722805923973,-500.0,0.00023506,9]
[334168765,1722805923982,-611.78,0.00023506,9]
[334168766,1722805923992,-500.0,0.00023506,9]
[334168767,1722805924001,-500.0,0.00023506,9]
[334168768,1722805924010,-500.0,0.00023506,9]
[334168769,1722805924020,-500.0,0.00023506,9]
[334168770,1722805924030,-500.0,0.00023506,9]